bitfinex/quotes_BTCUSD_20230906
["timestamp","ask_amount","ask_price","bid_price","bid_amount"]
[1694029660528,0.37617388,25722.0,25721.0,1.557148]
[1694029662192,0.37617388,25722.0,25721.0,0.779574]
[1694029662396,0.37617388,25722.0,25721.0,1.557148]
[1694029663304,0.37617388,25722.0,25721.0,1.747148]
[1694029664793,0.37617388,25722.0,25721.0,0.192]
[1694029665639,0.71492838,25722.0,25721.0,0.969574]
[1694029667153,1.49247238,25722.0,25721.0,0.192]
[1694029667664,1.49247238,25722.0,25721.0,0.1921]
[1694029668780,2.27001638,25722.0,25721.0,0.1921]
[1694029670513,2.89645338,25722.0,25721.0,0.1921]
[1694029670958,3.28309865,25722.0,25721.0,0.1921]
[1694029671208,3.35689865,25722.0,25721.0,0.1921]
[1694029671451,3.59653768,25722.0,25721.0,0.1921]
[1694029671911,3.59341768,25722.0,25721.0,0.1921]
[1694029672147,3.59347768,25722.0,25721.0,0.1921]
[1694029672381,3.50021407,25722.0,25721.0,0.1921]
[1694029672591,3.49067407,25722.0,25721.0,0.1921]
[1694029672794,3.49061407,25722.0,25721.0,0.1921]
[1694029673045,3.49067407,25722.0,25721.0,0.1921]
[1694029673469,3.6763013,25722.0,25721.0,0.1921]
[1694029673644,3.6758213,25722.0,25721.0,0.1921]
[1694029673844,3.6755213,25722.0,25721.0,0.1901]
[1694029674070,3.6754613,25722.0,25721.0,0.077603]
[1694029674268,3.6763613,25722.0,25721.0,0.077603]
[1694029674470,3.6752813,25722.0,25721.0,0.077603]
[1694029674721,3.6754013,25722.0,25721.0,0.077603]
[1694029675025,3.6760013,25722.0,25721.0,0.077603]
[1694029675245,3.6761213,25722.0,25721.0,0.077603]
[1694029675374,3.53694588,25722.0,25721.0,0.077603]
[1694029675579,3.53598588,25722.0,25721.0,0.077603]
[1694029675798,3.53592588,25722.0,25721.0,0.077603]
[1694029676029,3.53652588,25722.0,25721.0,0.077603]
[1694029676429,3.54120588,25722.0,25721.0,0.077603]
[1694029676631,3.77610492,25722.0,25721.0,0.077603]
[1694029676829,3.77964492,25722.0,25721.0,0.077603]
[1694029677065,3.77706492,25722.0,25721.0,0.077603]
[1694029677253,3.77460492,25722.0,25721.0,0.077603]
[1694029677455,3.58849769,25722.0,25721.0,0.077603]
[1694029677689,3.77497923,25722.0,25721.0,0.077603]
[1694029677834,3.58891769,25722.0,25721.0,0.077603]
[1694029678235,3.58885769,25722.0,25721.0,0.077603]
[1694029678435,3.58417769,25722.0,25721.0,0.077603]
[1694029678636,3.58315769,25722.0,25721.0,0.077603]
[1694029678832,3.58375769,25722.0,25721.0,0.077603]
[1694029679045,2.02800969,25722.0,25721.0,0.077603]
[1694029679241,3.58309769,25722.0,25721.0,0.077603]
[1694029679415,3.51595769,25722.0,25721.0,0.077603]
[1694029680264,3.58303769,25722.0,25721.0,0.077603]
[1694029680468,3.51413865,25722.0,25721.0,0.077603]
[1694029680670,3.86219865,25722.0,25721.0,0.077603]
[1694029680879,3.85001865,25722.0,25721.0,0.077603]
[1694029681082,3.84713865,25722.0,25721.0,0.077603]
[1694029681284,3.84683865,25722.0,25721.0,0.077603]
[1694029681489,4.1304695,25722.0,25721.0,0.077603]
[1694029681695,4.1378495,25722.0,25721.0,0.077603]
[1694029681908,4.1385095,25722.0,25721.0,0.077603]
[1694029682107,4.1343695,25722.0,25721.0,0.077603]
[1694029682503,4.1362295,25722.0,25721.0,0.077603]
[1694029682708,4.1376695,25722.0,25721.0,0.077603]
[1694029682912,4.1362295,25722.0,25721.0,0.077603]
[1694029683119,0.14,25720.0,25713.0,2.333394]
[1694029683325,0.09328345,25717.0,25713.0,1.555596]
[1694029683502,0.81463692,25716.0,25713.0,1.555596]
[1694029684145,0.777731,25716.0,25713.0,1.555596]
[1694029684508,1.555462,25716.0,25713.0,1.556596]
[1694029685030,1.79184515,25716.0,25713.0,1.557596]
[1694029685228,2.12444213,25716.0,25713.0,1.557596]
[1694029686032,2.12444213,25716.0,25713.0,1.556596]
[1694029686239,1.34671113,25716.0,25713.0,1.555596]
[1694029686438,0.57198013,25716.0,25713.0,2.22389064]
[1694029686785,0.57498013,25716.0,25713.0,2.22789064]
[1694029686989,0.89783007,25715.0,25713.0,0.67227664]
[1694029687825,0.89783007,25715.0,25713.0,0.66827664]
[1694029688058,0.89783007,25715.0,25713.0,0.66327664]
[1694029688235,0.89983007,25715.0,25713.0,0.66727664]
[1694029688393,0.89983007,25715.0,25713.0,1.44509264]
[1694029688609,0.002,25715.0,25713.0,2.22290864]
[1694029689231,0.004,25715.0,25713.0,2.22790864]
[1694029691247,1.05575511,25715.0,25713.0,0.009]
[1694029691450,1.83351411,25715.0,25713.0,0.009]
[1694029691737,0.18536723,25714.0,25713.0,0.786816]
[1694029692584,0.18536723,25714.0,25713.0,0.781816]
[1694029692789,0.47432236,25714.0,25713.0,0.782816]
[1694029693230,0.47632236,25714.0,25713.0,0.786816]
[1694029693482,0.47632236,25714.0,25713.0,0.876816]
[1694029694893,0.47632236,25714.0,25713.0,0.009]
[1694029695413,0.47632236,25714.0,25713.0,0.786816]
[1694029696480,0.47632236,25714.0,25713.0,0.009]
[1694029696921,0.29095513,25714.0,25713.0,1.564632]
[1694029697935,0.004,25714.0,25713.0,1.564632]
[1694029699223,0.004,25714.0,25713.0,2.342448]
[1694029699431,0.004,25714.0,25713.0,2.463548]
[1694029700741,0.29172577,25714.0,25713.0,0.786816]
[1694029700950,0.39867255,25714.0,25713.0,0.786816]
[1694029701157,0.39867255,25714.0,25713.0,0.009]
[1694029702378,0.11094678,25714.0,25713.0,0.786816]
[1694029702628,0.11094678,25714.0,25713.0,1.564632]
[1694029704326,0.11094678,25714.0,25713.0,1.574632]
[1694029706004,0.27736904,25714.0,25713.0,0.019]
[1694029706700,0.27736904,25714.0,25713.0,0.796816]
[1694029708493,1.05515504,25714.0,25713.0,0.019]
[1694029708806,1.83294104,25714.0,25713.0,0.019]
[1694029709022,2.18700534,25714.0,25713.0,0.019]
[1694029710170,1.40921934,25714.0,25713.0,0.019]
[1694029711345,2.18700534,25714.0,25713.0,0.019]
[1694029713817,2.2479925,25714.0,25713.0,0.019]
[1694029717487,3.2588188,25714.0,25713.0,0.019]
[1694029717661,3.35203492,25714.0,25713.0,0.019]
[1694029717926,3.21221074,25714.0,25713.0,0.019]
[1694029718104,3.35227984,25714.0,25713.0,0.019]
[1694029718516,3.21221074,25714.0,25713.0,0.019]
[1694029718950,3.73891687,25714.0,25713.0,0.019]
[1694029719173,3.32548697,25714.0,25713.0,0.019]
[1694029719934,3.55852727,25714.0,25713.0,0.019]
[1694029720132,3.32548697,25714.0,25713.0,0.019]
[1694029720369,3.37209503,25714.0,25713.0,0.019]
[1694029720781,3.55882204,25714.0,25713.0,0.019]
[1694029720987,3.67992204,25714.0,25713.0,0.019]
[1694029721198,3.55937503,25714.0,25713.0,0.019]
[1694029721395,3.49319503,25714.0,25713.0,0.019]
[1694029721797,3.26015473,25714.0,25713.0,0.019]
[1694029722022,3.49354625,25714.0,25713.0,0.019]
[1694029722929,3.68024588,25714.0,25713.0,0.019]
[1694029723415,3.49354625,25714.0,25713.0,0.019]
[1694029723662,3.33443473,25714.0,25713.0,0.019]
[1694029723895,3.61031415,25714.0,25713.0,0.019]
[1694029724126,3.61001415,25714.0,25713.0,0.019]
[1694029724351,3.61031415,25714.0,25713.0,0.019]
[1694029724587,3.37747473,25714.0,25713.0,0.014]
[1694029724833,3.61031695,25714.0,25713.0,0.018]
[1694029725037,3.59817695,25714.0,25713.0,0.014]
[1694029725304,3.59817695,25714.0,25713.0,0.01]
[1694029725305,3.52949695,25714.0,25713.0,0.01]
[1694029725658,3.37023473,25714.0,25713.0,0.014]
[1694029725660,3.38213473,25714.0,25713.0,0.011]
[1694029725880,3.62810293,25714.0,25713.0,0.011]
[1694029726083,3.62858293,25714.0,25713.0,0.011]
[1694029726285,3.63254293,25714.0,25713.0,0.011]
[1694029726508,3.40935473,25714.0,25713.0,0.011]
[1694029726849,3.63521996,25714.0,25713.0,0.011]
[1694029727063,3.63443996,25714.0,25713.0,0.011]
[1694029727209,3.40215473,25714.0,25713.0,0.011]
[1694029727409,3.40875473,25714.0,25713.0,0.011]
[1694029727637,3.47373473,25714.0,25713.0,0.011]
[1694029727899,3.47475473,25714.0,25713.0,0.011]
[1694029728081,3.47451473,25714.0,25713.0,0.011]
[1694029728287,3.47457473,25714.0,25713.0,0.011]
[1694029728641,3.47631473,25714.0,25713.0,0.011]
[1694029728845,3.61442967,25714.0,25713.0,0.011]
[1694029729261,3.38115473,25714.0,25713.0,0.011]
[1694029729873,3.61439777,25714.0,25713.0,0.011]
[1694029730084,3.76617347,25714.0,25713.0,0.011]
[1694029730509,3.49329777,25714.0,25713.0,0.011]
[1694029731442,3.61439777,25714.0,25713.0,0.011]
[1694029733803,3.55341061,25714.0,25713.0,0.011]
[1694029734836,3.73997115,25714.0,25713.0,0.011]
[1694029735063,3.55341061,25714.0,25713.0,0.011]
[1694029742288,3.55341061,25714.0,25713.0,0.011]
[1694029743729,3.61440715,25714.0,25713.0,0.011]
[1694029743960,3.70494715,25714.0,25713.0,0.011]
[1694029744116,3.71592715,25714.0,25713.0,0.011]
[1694029744500,3.71526715,25714.0,25713.0,0.011]
[1694029744702,3.71532715,25714.0,25713.0,0.011]
[1694029744868,3.71508715,25714.0,25713.0,0.011]
[1694029745027,3.71490715,25714.0,25713.0,0.011]
[1694029745232,3.71286715,25714.0,25713.0,0.011]
[1694029745434,3.71256715,25714.0,25713.0,0.011]
[1694029745650,3.71490715,25714.0,25713.0,0.011]
[1694029745850,3.48220411,25714.0,25713.0,0.011]
[1694029746238,3.48214411,25714.0,25713.0,0.011]
[1694029746444,3.48178411,25714.0,25713.0,0.011]
[1694029746644,3.48166411,25714.0,25713.0,0.011]
[1694029746852,3.46246411,25714.0,25713.0,0.011]
[1694029747068,3.46120411,25714.0,25713.0,0.011]
[1694029747269,3.45778411,25714.0,25713.0,0.011]
[1694029747476,3.45772411,25714.0,25713.0,0.011]
[1694029747674,3.45562411,25714.0,25713.0,0.011]
[1694029747850,3.45304411,25714.0,25713.0,0.011]
[1694029748268,3.45478411,25714.0,25713.0,0.011]
[1694029748476,3.43478411,25714.0,25713.0,0.011]
[1694029748674,3.43616411,25714.0,25713.0,0.011]
[1694029748879,3.43832411,25714.0,25713.0,0.011]
[1694029749294,3.44948411,25714.0,25713.0,0.011]
[1694029749500,3.45020411,25714.0,25713.0,0.011]
[1694029749701,3.44924411,25714.0,25713.0,0.011]
[1694029749905,3.44960411,25714.0,25713.0,0.011]
[1694029750114,3.45320411,25714.0,25713.0,0.011]
[1694029750340,3.45290411,25714.0,25713.0,0.011]
[1694029750630,3.45308411,25714.0,25713.0,0.011]
[1694029750824,3.45194411,25714.0,25713.0,0.011]
[1694029751055,3.45332411,25714.0,25713.0,0.011]
[1694029751245,3.45344411,25714.0,25713.0,0.011]
[1694029751413,3.44810411,25714.0,25713.0,0.011]
[1694029751609,3.44576411,25714.0,25713.0,0.011]
[1694029752037,3.44228411,25714.0,25713.0,0.011]
[1694029752230,3.44066411,25714.0,25713.0,0.011]
[1694029752436,3.44546411,25714.0,25713.0,0.011]
[1694029752645,3.44606411,25714.0,25713.0,0.011]
[1694029752803,3.44666411,25714.0,25713.0,0.011]
[1694029753001,3.44636411,25714.0,25713.0,0.011]
[1694029753205,3.44630411,25714.0,25713.0,0.011]
[1694029753406,3.44720411,25714.0,25713.0,0.011]
[1694029753689,3.44726411,25714.0,25713.0,0.011]
[1694029753903,3.44684411,25714.0,25713.0,0.011]
[1694029754117,3.44564411,25714.0,25713.0,0.011]
[1694029754322,3.44558411,25714.0,25713.0,0.011]
[1694029754528,3.44612411,25714.0,25713.0,0.011]
[1694029754724,3.44630411,25714.0,25713.0,0.011]
[1694029754877,3.44606411,25714.0,25713.0,0.011]
[1694029755082,3.44714411,25714.0,25713.0,0.011]
[1694029755402,3.45230411,25714.0,25713.0,0.011]
[1694029755614,3.46400411,25714.0,25713.0,0.011]
[1694029755867,4.5497939,25714.0,25713.0,0.011]
[1694029756043,4.42182411,25714.0,25713.0,0.011]
[1694029756385,4.26288411,25714.0,25713.0,0.011]
[1694029756518,4.24266411,25714.0,25713.0,0.01]
[1694029756723,4.52063082,25714.0,25713.0,0.01]
[1694029756935,4.26390411,25714.0,25713.0,0.01]
[1694029757128,4.25048411,25714.0,25713.0,0.01]
[1694029757349,4.24562411,25714.0,25713.0,0.01]
[1694029757556,4.5279256,25714.0,25713.0,0.01]
[1694029757756,4.24850411,25714.0,25713.0,0.01]
[1694029757967,4.24904411,25714.0,25713.0,0.01]
[1694029758110,4.24988411,25714.0,25713.0,0.01]
[1694029758358,4.27388411,25714.0,25713.0,0.01]
[1694029758563,4.55842674,25714.0,25713.0,0.01]
[1694029758807,4.27766411,25714.0,25713.0,0.01]
[1694029759015,4.27760411,25714.0,25713.0,0.01]
[1694029759216,4.27748411,25714.0,25713.0,0.01]
[1694029759537,4.55742001,25714.0,25713.0,0.01]
[1694029759842,4.27748411,25714.0,25713.0,0.01]
[1694029760044,4.27694411,25714.0,25713.0,0.01]
[1694029760244,4.27898411,25714.0,25713.0,0.01]
[1694029760459,4.29356411,25714.0,25713.0,0.01]
[1694029760664,4.44482411,25714.0,25713.0,0.01]
[1694029760872,4.44542411,25714.0,25713.0,0.01]
[1694029761084,4.44866411,25714.0,25713.0,0.01]
[1694029761286,4.44122411,25714.0,25713.0,0.01]
[1694029761500,4.29128411,25714.0,25713.0,0.01]
[1694029761705,4.29074411,25714.0,25713.0,0.01]
[1694029761909,4.29038411,25714.0,25713.0,0.01]
[1694029762159,4.29026411,25714.0,25713.0,0.01]
[1694029762347,4.28336411,25714.0,25713.0,0.01]
[1694029762563,4.27670411,25714.0,25713.0,0.01]
[1694029762765,4.27580411,25714.0,25713.0,0.01]
[1694029762972,4.27448411,25714.0,25713.0,0.01]
[1694029763181,4.27988411,25714.0,25713.0,0.01]
[1694029763336,4.28006411,25714.0,25713.0,0.01]
[1694029763552,4.28012411,25714.0,25713.0,0.01]
[1694029764007,4.27976411,25714.0,25713.0,0.01]
[1694029764154,4.27538411,25714.0,25713.0,0.01]
[1694029764520,4.27688411,25714.0,25713.0,0.01]
[1694029764709,4.27682411,25714.0,25713.0,0.01]
[1694029764924,4.28024411,25714.0,25713.0,0.01]
[1694029765220,4.59784601,25714.0,25713.0,0.01]
[1694029765433,4.59916601,25714.0,25713.0,0.01]
[1694029765635,4.28408411,25714.0,25713.0,0.01]
[1694029765804,4.59916601,25714.0,25713.0,0.01]
[1694029765982,4.59910601,25714.0,25713.0,0.01]
[1694029766179,4.59712601,25714.0,25713.0,0.01]
[1694029766380,4.59688601,25714.0,25713.0,0.01]
[1694029766579,4.28204411,25714.0,25713.0,0.01]
[1694029766925,4.59694601,25714.0,25713.0,0.01]
[1694029767341,4.59736601,25714.0,25713.0,0.01]
[1694029767649,4.59562601,25714.0,25713.0,0.01]
[1694029768165,4.59568601,25714.0,25713.0,0.01]
[1694029768394,4.59562601,25714.0,25713.0,0.01]
[1694029768600,4.59544601,25714.0,25713.0,0.01]
[1694029768824,4.59538601,25714.0,25713.0,0.01]
[1694029769048,4.59490601,25714.0,25713.0,0.01]
[1694029769223,4.59604601,25714.0,25713.0,0.01]
[1694029769429,4.59598601,25714.0,25713.0,0.01]
[1694029769569,4.59550601,25714.0,25713.0,0.01]
[1694029769781,4.59538601,25714.0,25713.0,0.01]
[1694029769986,4.59532601,25714.0,25713.0,0.01]
[1694029770191,4.59520601,25714.0,25713.0,0.01]
[1694029770395,4.59538601,25714.0,25713.0,0.01]
[1694029770595,4.59628601,25714.0,25713.0,0.01]
[1694029770821,4.59862601,25714.0,25713.0,0.01]
[1694029771025,4.59940601,25714.0,25713.0,0.01]
[1694029771223,4.59886601,25714.0,25713.0,0.01]
[1694029771423,4.59688601,25714.0,25713.0,0.01]
[1694029771604,4.59706601,25714.0,25713.0,0.01]
[1694029771800,4.59670601,25714.0,25713.0,0.01]
[1694029772021,4.59664601,25714.0,25713.0,0.01]
[1694029772225,4.59658601,25714.0,25713.0,0.01]
[1694029772429,4.59676601,25714.0,25713.0,0.01]
[1694029772629,4.59634601,25714.0,25713.0,0.01]
[1694029772873,4.59628601,25714.0,25713.0,0.01]
[1694029773021,4.60246601,25714.0,25713.0,0.01]
[1694029773223,4.60240601,25714.0,25713.0,0.01]
[1694029773461,4.60228601,25714.0,25713.0,0.01]
[1694029773681,4.60312601,25714.0,25713.0,0.01]
[1694029773885,4.60210601,25714.0,25713.0,0.01]
[1694029774088,4.60234601,25714.0,25713.0,0.01]
[1694029774568,4.60336601,25714.0,25713.0,0.01]
[1694029774773,4.60672601,25714.0,25713.0,0.01]
[1694029774986,4.60774601,25714.0,25713.0,0.01]
[1694029775210,4.60684601,25714.0,25713.0,0.01]
[1694029775420,4.60552601,25714.0,25713.0,0.01]
[1694029775622,4.60576601,25714.0,25713.0,0.01]
[1694029775833,4.61884601,25714.0,25713.0,0.01]
[1694029776060,0.06,25711.0,25706.0,0.1623]
[1694029776280,0.42023331,25707.0,25705.0,0.191198]
[1694029776493,1.73303955,25706.0,25705.0,0.019998]
[1694029776705,1.69613363,25706.0,25705.0,0.019998]
[1694029777540,1.69613363,25706.0,25705.0,0.020998]
[1694029777744,1.69613363,25706.0,25705.0,0.019998]
[1694029778155,1.69913363,25706.0,25705.0,0.020998]
[1694029778361,2.0857789,25706.0,25705.0,0.020998]
[1694029778561,2.17914092,25706.0,25705.0,0.020998]
[1694029778772,2.18214092,25706.0,25705.0,0.021998]
[1694029779476,2.1821093,25706.0,25705.0,0.021998]
[1694029779720,2.9601373,25706.0,25705.0,0.021998]
[1694029779929,3.24426232,25706.0,25705.0,0.021998]
[1694029782527,3.1042175,25706.0,25705.0,0.021998]
[1694029782904,3.24426232,25706.0,25705.0,0.021998]
[1694029783725,2.3261895,25706.0,25705.0,0.021998]
[1694029783914,2.46623432,25706.0,25705.0,0.021998]
[1694029784718,2.3261895,25706.0,25705.0,0.021998]
[1694029784919,2.46623432,25706.0,25705.0,0.021998]
[1694029785524,2.3261895,25706.0,25705.0,0.021998]
[1694029785912,2.46623432,25706.0,25705.0,0.021998]
[1694029786085,3.24426232,25706.0,25705.0,0.021998]
[1694029786562,3.1042175,25706.0,25705.0,0.021998]
[1694029786740,3.49086277,25706.0,25705.0,0.021998]
[1694029786940,3.63090759,25706.0,25705.0,0.021998]
[1694029787150,3.39749956,25706.0,25705.0,0.031998]
[1694029787278,3.49085282,25706.0,25705.0,0.021998]
[1694029788122,3.63088272,25706.0,25705.0,0.021998]
[1694029788557,3.49085282,25706.0,25705.0,0.021998]
[1694029788988,2.71282482,25706.0,25705.0,0.021998]
[1694029789183,3.49085282,25706.0,25705.0,0.021998]
[1694029789390,3.75198272,25706.0,25705.0,0.021998]
[1694029791613,3.65862946,25706.0,25705.0,0.021998]
[1694029791822,3.93868924,25706.0,25705.0,0.021998]
[1694029792021,3.93872039,25706.0,25705.0,0.021998]
[1694029792222,3.75198272,25706.0,25705.0,0.021998]
[1694029792431,3.93872008,25706.0,25705.0,0.021998]
[1694029792647,3.93871542,25706.0,25705.0,0.021998]
[1694029794124,3.70533226,25706.0,25705.0,0.021998]
[1694029794872,2.10259237,25706.0,25705.0,0.021998]
[1694029795083,0.77012937,25706.0,25705.0,0.021998]
[1694029795290,1.68820618,25706.0,25705.0,0.021998]
[1694029795538,2.46623418,25706.0,25705.0,0.021998]
[1694029796494,2.3728751,25706.0,25705.0,0.021998]
[1694029796707,2.46624092,25706.0,25705.0,0.021998]
[1694029796916,0.77013611,25706.0,25705.0,0.021998]
[1694029797090,1.93480938,25706.0,25705.0,0.021998]
[1694029797296,2.07485819,25706.0,25705.0,0.021998]
[1694029798285,1.68821292,25706.0,25705.0,0.021998]
[1694029799285,2.46624092,25706.0,25705.0,0.021998]
[1694029799740,2.3728751,25706.0,25705.0,0.021998]
[1694029800413,0.09937979,25706.0,25705.0,2.63193011]
[1694029800612,0.09937979,25706.0,25705.0,2.477272]
[1694029800613,0.006,25706.0,25705.0,2.477272]
[1694029800738,0.006,25706.0,25705.0,2.356172]
[1694029803064,0.006,25706.0,25705.0,2.241615]
[1694029806526,0.006,25706.0,25705.0,1.463557]
[1694029806927,0.09937979,25706.0,25705.0,1.463557]
[1694029807629,0.006,25706.0,25705.0,1.463557]
[1694029808267,0.006,25706.0,25705.0,2.241615]
[1694029811597,0.006,25706.0,25705.0,2.86936027]
[1694029811807,0.006,25706.0,25705.0,3.22936027]
[1694029813865,0.006,25706.0,25705.0,2.842715]
[1694029815093,0.006,25706.0,25705.0,0.5411]
[1694029815303,0.006,25706.0,25704.0,0.979162]
[1694029815304,0.36194209,25706.0,25704.0,0.979162]
[1694029815507,0.45532188,25706.0,25703.0,1.757306]
[1694029815715,0.45532188,25706.0,25703.0,1.757302]
[1694029815923,0.50330867,25705.0,25701.0,0.899251]
[1694029816131,0.50330867,25705.0,25701.0,0.858151]
[1694029816132,2.09637259,25705.0,25701.0,0.858151]
[1694029816346,2.47867259,25705.0,25701.0,0.858151]
[1694029816561,2.47867259,25705.0,25701.0,1.63633]
[1694029816765,2.44176667,25705.0,25701.0,1.63633]
[1694029816971,0.3582475,25704.0,25701.0,1.63633]
[1694029817594,0.3582475,25704.0,25701.0,1.55633]
[1694029817803,0.3582475,25704.0,25701.0,1.63633]
[1694029818224,0.79221335,25704.0,25701.0,1.63633]
[1694029819106,0.88559314,25704.0,25701.0,1.63633]
[1694029819315,0.89159314,25704.0,25701.0,1.63633]
[1694029819521,0.79821335,25704.0,25701.0,1.63633]
[1694029819948,0.79821335,25704.0,25701.0,2.414509]
[1694029821681,0.43996585,25704.0,25701.0,2.414509]
[1694029822779,0.53334564,25704.0,25701.0,2.414509]
[1694029823235,0.53334564,25704.0,25701.0,1.63633]
[1694029823641,0.43996585,25704.0,25701.0,1.63633]
[1694029823979,0.53334564,25704.0,25701.0,2.414509]
[1694029824585,0.43996585,25704.0,25701.0,2.414509]
[1694029825125,0.59557488,25704.0,25701.0,2.414509]
[1694029825971,0.53334564,25704.0,25701.0,2.414509]
[1694029826557,0.43996585,25704.0,25701.0,2.414509]
[1694029828089,0.53334564,25704.0,25701.0,2.414509]
[1694029828700,1.31143764,25704.0,25701.0,1.63633]
[1694029829931,0.28713018,25703.0,25701.0,1.63633]
[1694029830136,0.28713018,25703.0,25701.0,0.778151]
[1694029830346,2.23910261,25703.0,25700.0,0.0001]
[1694029830553,3.01722261,25703.0,25700.0,0.0001]
[1694029830972,3.17622261,25703.0,25700.0,0.0001]
[1694029831165,0.38664527,25702.0,25700.0,0.0001]
[1694029831396,1.43375925,25702.0,25700.0,0.0001]
[1694029832442,0.159,25702.0,25700.0,1.556518]
[1694029832858,0.159,25702.0,25700.0,2.334728]
[1694029833274,0.161,25702.0,25700.0,2.334728]
[1694029833687,0.22201345,25702.0,25700.0,2.334728]
[1694029834085,0.22401345,25702.0,25700.0,2.334728]
[1694029836476,0.22401345,25702.0,25700.0,1.556518]
[1694029837571,0.22401345,25702.0,25700.0,2.334728]
[1694029838019,0.06501345,25702.0,25700.0,2.334728]
[1694029839010,0.06501345,25702.0,25700.0,1.556518]
[1694029843924,0.06501345,25702.0,25700.0,2.334728]
[1694029846742,0.06501345,25702.0,25700.0,1.556518]
[1694029847551,0.06501345,25702.0,25700.0,2.334728]
[1694029847995,0.06501345,25702.0,25700.0,1.556518]
[1694029848752,0.34615923,25702.0,25700.0,1.556518]
[1694029848957,0.63913603,25702.0,25700.0,1.556518]
[1694029849208,0.63913603,25702.0,25700.0,0.0001]
[1694029849406,0.63913603,25702.0,25700.0,0.778304]
[1694029852526,1.41729003,25702.0,25700.0,0.778304]
[1694029852960,1.41729003,25702.0,25700.0,0.0001]
[1694029853170,0.56959444,25701.0,25700.0,0.0001]
[1694029853377,2.21933223,25701.0,25700.0,0.0001]
[1694029853581,2.37433223,25701.0,25700.0,0.0001]
[1694029853996,2.28095244,25701.0,25700.0,0.0001]
[1694029854813,2.28695244,25701.0,25700.0,0.0001]
[1694029858211,3.06513144,25701.0,25700.0,0.0001]
[1694029858392,3.57287671,25701.0,25700.0,0.0001]
[1694029865125,3.6662565,25701.0,25700.0,0.0001]
[1694029866787,3.57287671,25701.0,25700.0,0.0001]
[1694029869223,3.6662565,25701.0,25700.0,0.0001]
[1694029869421,3.80630531,25701.0,25700.0,0.0001]
[1694029870282,1.92766273,25701.0,25700.0,0.0001]
[1694029870487,0.25437979,25701.0,25700.0,0.0001]
[1694029870898,0.161,25701.0,25700.0,0.0001]
[1694029871507,0.25437979,25701.0,25700.0,0.0001]
[1694029871929,1.03255879,25701.0,25700.0,0.0001]
[1694029872268,1.31053019,25701.0,25700.0,0.0001]
[1694029873105,2.08870919,25701.0,25700.0,0.0001]
[1694029874579,2.228758,25701.0,25700.0,0.0001]
[1694029874764,2.08870919,25701.0,25700.0,0.0001]
[1694029875536,2.13537821,25701.0,25700.0,0.0001]
[1694029875907,2.22876785,25701.0,25700.0,0.0001]
[1694029876106,1.85740681,25701.0,25700.0,0.0001]
[1694029876352,2.63558581,25701.0,25700.0,0.0001]
[1694029878323,2.847683,25701.0,25700.0,0.0001]
[1694029878977,3.23432827,25701.0,25700.0,0.0001]
[1694029879147,3.42106097,25701.0,25700.0,0.0001]
[1694029879348,3.80770624,25701.0,25700.0,0.0001]
[1694029879571,3.62097354,25701.0,25700.0,0.0001]
[1694029879953,2.84279454,25701.0,25700.0,0.0001]
[1694029882556,2.45614927,25701.0,25700.0,0.0001]
[1694029884350,2.64288197,25701.0,25700.0,0.0001]
[1694029884956,1.08652397,25701.0,25700.0,0.0001]
[1694029885156,0.89979127,25701.0,25700.0,0.0001]
[1694029885416,0.09939574,25701.0,25700.0,1.55652]
[1694029885633,0.23944455,25701.0,25700.0,2.33473]
[1694029885789,0.09939574,25701.0,25700.0,2.33473]
[1694029886578,0.09939574,25701.0,25700.0,1.55652]
[1694029887868,0.09939574,25701.0,25700.0,2.33473]
[1694029888508,0.006,25701.0,25700.0,2.33473]
[1694029889109,0.006,25701.0,25700.0,1.55652]
[1694029889903,0.006,25701.0,25700.0,0.0001]
[1694029890106,1.06395798,25701.0,25700.0,0.0001]
[1694029890315,1.93553272,25701.0,25700.0,0.0001]
[1694029890517,2.09283272,25701.0,25700.0,0.0001]
[1694029893673,1.31465372,25701.0,25700.0,0.0001]
[1694029897400,1.03487474,25701.0,25700.0,0.0001]
[1694029897605,0.64334101,25701.0,25700.0,0.77831]
[1694029897827,0.78338982,25701.0,25700.0,0.77831]
[1694029898183,0.39674455,25701.0,25700.0,0.77831]
[1694029898387,0.25669574,25701.0,25700.0,0.77831]
[1694029899235,0.30334881,25701.0,25700.0,0.0001]
[1694029900014,0.30334881,25701.0,25700.0,0.77831]
[1694029900841,0.39681167,25701.0,25700.0,0.0001]
[1694029901055,0.30334881,25701.0,25700.0,0.0001]
[1694029902557,0.49008151,25701.0,25700.0,0.0001]
[1694029903576,1.26826051,25701.0,25700.0,0.0001]
[1694029905080,2.82461851,25701.0,25700.0,0.0001]
[1694029905383,2.6845697,25701.0,25700.0,0.0001]
[1694029905723,1.9063907,25701.0,25700.0,0.0001]
[1694029906150,2.04658772,25701.0,25700.0,0.0001]
[1694029906356,2.40523691,25701.0,25700.0,0.0001]
[1694029906986,1.62705791,25701.0,25700.0,0.0001]
[1694029907774,1.48686089,25701.0,25700.0,0.0001]
[1694029908177,1.62705993,25701.0,25700.0,0.0001]
[1694029908389,0.006,25701.0,25700.0,2.48938811]
[1694029908559,0.006,25701.0,25700.0,3.40623338]
[1694029908768,0.006,25701.0,25700.0,3.37457527]
[1694029909222,0.006,25701.0,25700.0,3.53035127]
[1694029909670,0.006,25701.0,25700.0,3.12125127]
[1694029909872,0.006,25701.0,25700.0,3.09825127]
[1694029911031,0.006,25701.0,25700.0,2.691606]
[1694029911236,0.006,25701.0,25700.0,2.53583]
[1694029911853,0.006,25701.0,25700.0,2.51583]
[1694029912557,0.006,25701.0,25700.0,2.45583]
[1694029913134,0.006,25701.0,25700.0,1.67762]
[1694029915339,0.006,25701.0,25700.0,0.0001]
[1694029915540,1.11564187,25701.0,25700.0,0.0001]
[1694029915752,1.89382087,25701.0,25700.0,0.0001]